fUST/lending_fUST_20260328
["ID","MTS","AMOUNT","RATE_DAILY","PERIOD"]
[418954387,1774643439861,-481.49089233,0.000199,30]
[418954388,1774643439870,-1179.71705964,0.000199,30]
[418954389,1774643439880,-410.7330863,0.000199,2]
[418954390,1774643439892,-161.10966309,0.000199,2]
[418954391,1774643439902,-270.76495966,0.000199,2]
[418954392,1774643439914,-1320.37972324,0.000199,2]
[418954410,1774643443980,-5000.0,0.00019701,2]
[418954411,1774643443991,-7412.2675519,0.000199,2]
[418954412,1774643444000,-1516.0,0.000199,5]
[418954413,1774643444010,-362.85695737,0.000199,5]
[418954434,1774643446707,-610.66231225,0.000199,5]
[418954435,1774643446720,-779.33768775,0.000199,5]
[418954436,1774643446730,-1733.0,0.000199,5]
[418954437,1774643446740,-983.88500761,0.00019999,2]
[418954470,1774644632556,-3093.05945852,0.00012389,2]
[418954471,1774644632665,-1906.94054148,0.00012389,2]
[418954472,1774644632675,-5000.0,0.00012514,2]
[418954473,1774644632685,-597.0,0.00012514,2]
[418954474,1774644632694,-180.05041412,0.00013699,2]
[418954475,1774644632704,-1000.0,0.00013699,2]
[418954476,1774644632714,-190.63635,0.00016429,2]
[418954477,1774644632723,-200.0,0.00016438,2]
[418954478,1774644632732,-286.0,0.00017342,3]
[418954479,1774644632741,-500.0,0.00018773,2]
[418954480,1774644632750,-500.0,0.00019047,2]
[418954481,1774644632759,-381.2284996,0.00019222,2]
[418954482,1774644632769,-400.0,0.000193,3]
[418954483,1774644632778,-500.0,0.00019321,4]
[418954484,1774644632788,-13640.2015092,0.00019321,2]
[418954485,1774644632799,-1580.26245559,0.00019321,2]
[418954493,1774644638856,-1809.0,0.00019321,5]
[418954494,1774644638866,-34779.53603521,0.00019321,2]
[418954495,1774644638876,-361.599,0.00019322,2]
[418954497,1774644638885,-1215.27,0.00019495,4]
[418954499,1774644638894,-381.2284996,0.00019561,2]
[418954501,1774644638903,-500.0,0.00019595,4]
[418954503,1774644638913,-1215.27,0.00019769,4]
[418954505,1774644638922,-500.0,0.00019869,4]
[418954507,1774644638932,-381.2284996,0.000199,2]
[418954509,1774644638943,-8103.07101132,0.000199,2]
[418954511,1774644638952,-1000.0,0.00019999,2]
[418954513,1774644638962,-1000.0,0.00019999,3]
[418954515,1774644638972,-760.25262029,0.00019999,4]
[418954516,1774644638984,-239.74737971,0.00019999,4]
[418954518,1774644638993,-507.38707281,0.00019999,5]
[418954520,1774644639004,-486.35502269,0.00019999,5]
[418954521,1774644639045,-6.2579045,0.00019999,5]
[418954522,1774644639055,-422.2120955,0.00019999,2]
[418954528,1774644641948,-4577.7879045,0.00019999,2]
[418954529,1774644641959,-500.0,0.00019999,2]
[418954530,1774644641968,-1659.0,0.00019999,5]
[418954531,1774644641979,-308.98466358,0.0002,2]
[418954532,1774644641991,-7112.75941948,0.0002,2]
[418954538,1774644644077,-585.97660249,0.0002,2]
[418954539,1774644644088,-7374.82932665,0.0002,2]
[418954540,1774644644099,-124083.77758493,0.0002,2]
[418954541,1774644644110,-43966.37526459,0.0002,2]
[418954542,1774644644122,-1994.81770619,0.0002,2]
[418954545,1774644646875,-1073.53369019,0.000198,2]
[418954546,1774644646886,-638.29172964,0.000198,2]
[418954547,1774644646897,-3288.17458017,0.000198,2]
[418954548,1774644646906,-5668.12014061,0.0002,2]
[418954569,1774645831833,-677.26267608,9.045e-05,2]
[418954570,1774645831845,-305.668248,9.045e-05,2]
[418954571,1774645831857,-4017.06907592,9.045e-05,2]
[418954572,1774645831866,-982.93092408,9.136e-05,2]
[418954573,1774645831889,-4017.06907592,9.136e-05,2]
[418954574,1774645831899,-548.0,9.136e-05,2]
[418954575,1774645831908,-225.42339545,0.0001,2]
[418954576,1774645831918,-184.0,0.00010483,2]
[418954577,1774645831928,-246.29549719,0.00013699,2]
[418954578,1774645831937,-1000.0,0.00013699,2]
[418954579,1774645831946,-183.0,0.00016274,3]
[418954580,1774645831956,-200.0,0.00016438,2]
[418954581,1774645831966,-225.42339545,0.00016587,14]
[418954582,1774645831975,-457.204524,0.0001886,2]
[418954583,1774645831984,-13283.2496096,0.0001886,2]
[418954606,1774645838113,-5000.0,0.00018672,2]
[418954607,1774645838122,-1428.0,0.0001886,5]
[418954608,1774645838131,-1665.0,0.0001886,5]
[418954609,1774645838141,-36716.7503904,0.0001886,2]
[418954610,1774645838150,-159.8537621,0.00019013,2]
[418954611,1774645838160,-180.0,0.00019014,3]
[418954612,1774645838169,-289.279,0.00019123,2]
[418954613,1774645838178,-1114.0,0.00019319,4]
[418954614,1774645838187,-500.0,0.00019319,4]
[418954615,1774645838196,-1114.0,0.00019593,4]
[418954616,1774645838206,-500.0,0.00019593,4]
[418954617,1774645838215,-2200.0,0.000198,2]
[418954618,1774645838224,-303.42118316,0.00019836,2]
[418954619,1774645838233,-500.0,0.00019836,2]
[418954620,1774645838242,-500.0,0.00019836,2]
[418954621,1774645838251,-500.0,0.00019836,2]
[418954622,1774645838260,-500.0,0.00019836,2]
[418954623,1774645838270,-500.0,0.00019836,2]
[418954624,1774645838279,-500.0,0.00019836,2]
[418954625,1774645838288,-500.0,0.00019836,2]
[418954626,1774645838297,-500.0,0.00019836,2]
[418954627,1774645838306,-154.4773445,0.00019836,2]
[418954628,1774645838315,-500.0,0.00019836,2]
[418954629,1774645838325,-500.0,0.00019836,2]
[418954630,1774645838334,-500.0,0.00019836,2]
[418954631,1774645838343,-500.0,0.00019836,2]
[418954632,1774645838352,-500.0,0.00019836,2]
[418954633,1774645838362,-500.0,0.00019836,2]
[418954634,1774645838370,-500.0,0.00019836,2]
[418954635,1774645838379,-500.0,0.00019836,2]
[418954636,1774645838388,-1114.0,0.00019867,4]
[418954637,1774645838398,-500.0,0.00019867,4]
[418954638,1774645838407,-300.0,0.000199,5]
[418954639,1774645838416,-7292.76391017,0.000199,2]
[418954640,1774645838425,-178.74795154,0.00019964,2]
[418954641,1774645838434,-5000.0,0.00019999,2]
[418954642,1774645838444,-297887.45184238,0.0002,2]
[418954643,1774645838455,-994496.50306338,0.0002,2]
[418954644,1774645838464,-26651.38026953,0.0002,2]
[418954653,1774645840633,-814.419644,0.0002,2]
[418954657,1774645843276,-380.183,0.0002,2]
[418954658,1774645843494,-1736.20311704,0.0002,2]
[418954659,1774645843507,-488.57025586,0.0002,2]
[418954740,1774647031989,-1410.83091649,9.606e-05,2]
[418954813,1774647041613,-1322.61187385,9.606e-05,2]
[418954815,1774647041726,-2266.55720966,9.606e-05,2]
[418954817,1774647041736,-555.0,9.606e-05,2]
[418954819,1774647041745,-5000.0,9.703e-05,2]
[418954820,1774647041754,-202.65501358,0.0001,2]
[418954822,1774647041763,-215.25290222,0.0001,2]
[418954824,1774647041771,-199.74883683,0.0001,2]
[418954825,1774647041781,-1000.0,0.00013699,2]
[418954826,1774647041790,-1596.0,0.00015,2]
[418954827,1774647041799,-1368.0,0.00015,2]
[418954828,1774647041808,-199.0,0.00016301,3]
[418954829,1774647041818,-215.25290222,0.00016822,14]
[418954830,1774647041827,-202.65501358,0.00016822,14]
[418954831,1774647041836,-8012.93716305,0.00016825,2]
[418954832,1774647041848,-1506.02144817,0.00016825,2]
[418954833,1774647041861,-23726.50774562,0.00016825,2]
[418954834,1774647041873,-16754.53364316,0.00016825,2]
[418954835,1774647041883,-1012.39801694,0.00016825,2]
[418954836,1774647041895,-1000.0,0.00016925,2]
[418954837,1774647041904,-1012.39801694,0.00018336,2]
[418954838,1774647041913,-5040.0957415,0.00018959,2]
[418954839,1774647041923,-212.39482821,0.00019012,2]
[418954840,1774647041932,-500.0,0.00019012,2]
[418954841,1774647041941,-500.0,0.00019012,2]
[418954842,1774647041951,-500.0,0.00019012,2]
[418954843,1774647041961,-500.0,0.00019012,2]
[418954844,1774647041971,-500.0,0.00019012,2]
[418954845,1774647041981,-500.0,0.00019012,2]
[418954846,1774647041990,-500.0,0.00019012,2]
[418954847,1774647042000,-500.0,0.00019012,2]
[418954848,1774647042009,-500.0,0.00019012,2]
[418954849,1774647042018,-500.0,0.00019012,2]
[418954850,1774647042028,-500.0,0.00019012,2]
[418954851,1774647042037,-500.0,0.00019012,2]
[418954852,1774647042047,-500.0,0.00019012,2]
[418954853,1774647042056,-231.423,0.00019013,2]
[418954854,1774647042066,-974.75,0.00019132,2]
[418954855,1774647042075,-974.75,0.00019406,4]
[418954856,1774647042085,-3642.0,0.00019573,2]
[418954857,1774647042094,-3642.0,0.00019579,2]
[418954858,1774647042103,-974.75,0.0001968,4]
[418954859,1774647042112,-3642.0,0.00019725,2]
[418954860,1774647042122,-3642.0,0.00019728,2]
[418954861,1774647042131,-1012.39801694,0.00019846,2]
[418954862,1774647042140,-3642.0,0.00019851,2]
[418954863,1774647042150,-396.86229991,0.000199,36]
[418954864,1774647042159,-788.16839326,0.000199,36]
[418954865,1774647042168,-868.58303373,0.000199,36]
[418954866,1774647042178,-894.87504864,0.000199,36]
[418954867,1774647042187,-6563.48751918,0.000199,2]
[418954868,1774647042197,-974.75,0.00019954,4]
[418954869,1774647042206,-500.0,0.00019998,4]
[418954870,1774647042216,-5000.0,0.00019999,2]
[418954871,1774647042225,-169929.24371357,0.0002,2]
[418954872,1774647042234,-100000.0,0.0002,2]
[418954873,1774647042243,-95168.0,0.0002,2]
[418954874,1774647042253,-79487.0,0.0002,2]
[418954875,1774647042262,-100160.29420392,0.0002,2]
[418954876,1774647042272,-300.0,0.0002,5]
[418954877,1774647042281,-494896.46028611,0.0002,2]
[418954878,1774647042291,-163572.01425546,0.0002,2]
[418954879,1774647042300,-43101.73404207,0.0002,14]
[418954880,1774647042310,-400.0,0.0002,2]
[418954881,1774647042319,-42038.20562889,0.0002,20]
[418954882,1774647042328,-500.0,0.0002,2]
[418954883,1774647042337,-127193.81453116,0.0002,2]
[418954928,1774648232300,-673.65800602,0.00012265,2]
[418954929,1774648232311,-433.45811007,0.00012265,2]
[418954931,1774648238536,-3892.88388391,0.00012265,2]
[418954932,1774648238546,-5000.0,0.00012389,2]
[418954933,1774648238556,-595.0,0.00012389,2]
[418954934,1774648238565,-1000.0,0.00013699,2]
[418954935,1774648238575,-1529.0,0.00015,2]
[418954936,1774648238584,-1311.0,0.00015,2]
[418954937,1774648238593,-190.63635,0.00015233,2]
[418954938,1774648238602,-176.0,0.00016356,3]
[418954939,1774648238611,-500.0,0.00016821,2]
[418954940,1774648238621,-500.0,0.00017095,2]
[418954941,1774648238633,-500.0,0.00017369,2]
[418954942,1774648238643,-50000.0,0.00017642,2]
[418954943,1774648238653,-812.29,0.00017642,2]
[418954944,1774648238662,-500.0,0.00017643,2]
[418954945,1774648238671,-812.29,0.00017916,2]
[418954946,1774648238682,-245.0,0.00017917,2]
[418954947,1774648238693,-812.29,0.0001819,2]
[418954948,1774648238702,-211.0,0.0001836,120]
[418954949,1774648238712,-228.602262,0.00018409,2]
[418954950,1774648238721,-812.29,0.00018464,2]
[418954951,1774648238730,-812.29,0.00018738,2]
[418954952,1774648238740,-185.139,0.00019,2]
[418954953,1774648238749,-500.0,0.0001901,2]
[418954954,1774648238759,-500.0,0.0001901,2]
[418954955,1774648238769,-223.13414115,0.0001901,2]
[418954956,1774648238778,-500.0,0.0001901,2]
[418954957,1774648238787,-500.0,0.0001901,2]
[418954958,1774648238797,-500.0,0.0001901,2]
[418954959,1774648238806,-500.0,0.0001901,2]
[418954960,1774648238815,-500.0,0.0001901,2]
[418954961,1774648238824,-500.0,0.0001901,2]
[418954962,1774648238835,-500.0,0.0001901,2]
[418954963,1774648238846,-500.0,0.0001901,2]
[418954964,1774648238857,-500.0,0.0001901,2]
[418954965,1774648238866,-812.29,0.00019012,2]
[418954966,1774648238875,-812.29,0.00019286,4]
[418954967,1774648238884,-812.29,0.0001956,4]
[418954968,1774648238894,-812.29,0.00019834,4]
[418954969,1774648238903,-5000.0,0.00019999,2]
[418954970,1774648238912,-1000.0,0.00019999,2]
[418954971,1774648238921,-24791.1248399,0.0002,2]
[418954972,1774648238931,-49398.23703326,0.0002,2]
[418954973,1774648238944,-1666.4134488,0.0002,2]
[418955019,1774648241068,-1200.13926805,0.0002,2]
[418955020,1774648241129,-13235.2,0.0002,2]
[418955021,1774648241141,-587.0,0.0002,2]
[418955024,1774648243733,-2710.88604819,0.0001485,2]
[418955025,1774648243745,-1540.817128,0.0001485,2]
[418955026,1774648243756,-748.29682381,0.0001485,2]
[418955027,1774648243766,-1142.72521069,0.0002,2]
[418955028,1774648243778,-300.0,0.0002,2]
[418955029,1774648243805,-352.86948732,0.0002,2]
[418955036,1774648246834,-12794.123765,0.0002,2]
[418955037,1774648246845,-796.3799828,0.0002,2]
[418955038,1774648246856,-11461.53119502,0.0002,2]
[418955042,1774648881012,-1199.63090449,9.606e-05,2]
[418955183,1774649444442,-6300.70593546,5e-05,2]
[418955184,1774649444451,-5000.0,9.045e-05,2]
[418955185,1774649444461,-2348.02945124,9.136e-05,2]
[418955186,1774649444470,-548.0,9.136e-05,2]
[418955187,1774649444480,-194.24477556,0.0001,2]
[418955188,1774649444490,-3716.52229983,0.00013562,2]
[418955189,1774649444504,-1698.20433982,0.00013562,2]
[418955190,1774649444513,-1000.0,0.00013699,2]
[418955191,1774649444522,-1465.0,0.00015,2]
[418955192,1774649444531,-1256.0,0.00015,2]
[418955193,1774649444540,-162.0,0.00016411,3]
[418955194,1774649444551,-1000.0,0.00017353,2]
[418955195,1774649444561,-7349.44370956,0.00018999,2]
[418955196,1774649444572,-927.1608562,0.00018999,2]
[418955204,1774649446868,-5113.07355813,0.00018999,2]
[418955205,1774649446878,-500.0,0.00018999,2]
[418955206,1774649446887,-1343.0,0.00018999,5]
[418955207,1774649446897,-1152.0,0.00018999,5]
[418955208,1774649446906,-20000.0,0.00019,10]
[418955209,1774649446916,-185.139,0.00019162,2]
[418955210,1774649446925,-500.0,0.00019599,4]
[418955211,1774649446934,-507.68,0.00019599,4]
[418955212,1774649446944,-296.31497843,0.000196,2]
[418955213,1774649446953,-324.7865589,0.00019639,2]
[418955214,1774649446962,-507.68,0.00019873,4]
[418955215,1774649446971,-632.74876064,0.000199,2]
[418955216,1774649446980,-530.89647612,0.000199,30]
[418955217,1774649446990,-1122.92582863,0.000199,30]
[418955218,1774649446999,-500.0,0.00019998,4]
[418955219,1774649447008,-500.0,0.00019998,2]
[418955220,1774649447018,-500.0,0.00019998,2]
[418955221,1774649447027,-500.0,0.00019998,2]
[418955222,1774649447036,-500.0,0.00019998,2]
[418955223,1774649447045,-500.0,0.00019998,2]
[418955224,1774649447055,-500.0,0.00019998,2]
[418955225,1774649447064,-500.0,0.00019998,2]
[418955226,1774649447073,-506.1938988,0.00019998,2]
[418955227,1774649447082,-500.0,0.00019998,2]
[418955228,1774649447092,-5000.0,0.00019999,2]
[418955229,1774649447101,-500.0,0.00019999,4]
[418955230,1774649447110,-500.0,0.00019999,4]
[418955231,1774649447119,-253.26,0.00019999,4]
[418955232,1774649447128,-1994.0,0.0002,2]
[418955233,1774649447137,-14816.43088063,0.0002,2]
[418955234,1774649447147,-23000.0,0.0002,2]
[418955235,1774649447156,-24132.2616599,0.0002,2]
[418955236,1774649447167,-610.99505787,0.0002,2]
[418955417,1774650632658,-602.08482429,0.00013292,2]
[418955419,1774650632670,-1259.76777739,0.00013292,2]
[418955421,1774650632680,-397.91517571,0.00013292,2]
[418955442,1774650639029,-2062.90935697,0.00013292,2]
[418955443,1774650639041,-677.32286564,0.00013292,2]
[418955444,1774650639050,-609.0,0.00013292,2]
[418955445,1774650639059,-156.0,0.00013699,2]
[418955446,1774650639069,-1000.0,0.00013699,2]
[418955447,1774650639078,-1156.0,0.00015,2]
[418955448,1774650639088,-1348.0,0.00015,2]
[418955449,1774650639098,-184.0,0.00015241,2]
[418955450,1774650639107,-164.0,0.00016466,3]
[418955451,1774650639117,-190.63635,0.00017978,2]
[418955452,1774650639126,-209.82705552,0.00018,2]
[418955453,1774650639135,-206.0,0.0001836,120]
[418955454,1774650639145,-228.6022627,0.00018697,2]
[418955455,1774650639154,-3642.0,0.00019843,2]
[418955456,1774650639163,-3642.0,0.00019993,2]
[418955457,1774650639172,-5000.0,0.00019999,2]
[418955458,1774650639182,-185.139,0.00019999,2]
[418955459,1774650639191,-500.0,0.00019999,4]
[418955460,1774650639200,-150.769,0.00019999,2]
[418955461,1774650639210,-250.0,0.0002,2]
[418955462,1774650639219,-987654.52571615,0.0002,2]
[418955464,1774650639229,-10000.0,0.0002,2]
[418955465,1774650639239,-187589.11472793,0.0002,2]
[418955466,1774650639248,-800.08594274,0.0002,12]
[418955467,1774650639258,-623.29,0.0002,2]
[418955468,1774650639266,-340861.08967543,0.0002,2]
[418955469,1774650639278,-17968.08648678,0.0002,2]
[418955470,1774650639287,-6000.0,0.0002,5]
[418955471,1774650639297,-162.356259,0.0002,2]
[418955472,1774650639306,-195.725206,0.0002,2]
[418955473,1774650639316,-195.725206,0.0002,2]
[418955474,1774650639325,-195.725206,0.0002,2]
[418955475,1774650639335,-195.725206,0.0002,2]
[418955476,1774650639344,-398.307937,0.0002,2]
[418955477,1774650639353,-398.307937,0.0002,2]
[418955478,1774650639363,-151.0,0.0002,2]
[418955479,1774650639372,-398.307937,0.0002,2]
[418955480,1774650639381,-398.307937,0.0002,2]
[418955481,1774650639391,-386.360114,0.0002,2]
[418955482,1774650639400,-386.360114,0.0002,2]
[418955483,1774650639409,-386.360114,0.0002,2]
[418955484,1774650639418,-386.360114,0.0002,2]
[418955485,1774650639427,-151.0,0.0002,2]
[418955486,1774650639436,-151.0,0.0002,2]
[418955487,1774650639445,-151.0,0.0002,2]
[418955488,1774650639455,-151.0,0.0002,2]
[418955489,1774650639464,-151.0,0.0002,2]
[418955490,1774650639474,-151.0,0.0002,2]
[418955491,1774650639484,-151.0,0.0002,2]
[418955492,1774650639494,-151.0,0.0002,2]
[418955493,1774650639504,-151.0,0.0002,2]
[418955494,1774650639515,-323.076928,0.0002,2]
[418955495,1774650639524,-323.076928,0.0002,2]
[418955496,1774650639534,-323.076928,0.0002,2]
[418955497,1774650639543,-323.076928,0.0002,2]
[418955498,1774650639553,-223.887195,0.0002,2]
[418955499,1774650639562,-223.887195,0.0002,2]
[418955500,1774650639571,-223.887195,0.0002,2]
[418955501,1774650639581,-223.887195,0.0002,2]
[418955502,1774650639590,-334.07276,0.0002,2]
[418955503,1774650639599,-334.07276,0.0002,2]
[418955504,1774650639608,-334.07276,0.0002,2]
[418955505,1774650639617,-334.07276,0.0002,2]
[418955506,1774650639626,-5999.99,0.0002,5]
[418955507,1774650639635,-151.789437,0.0002,2]
[418955508,1774650639644,-151.789437,0.0002,2]
[418955509,1774650639653,-151.789437,0.0002,2]
[418955510,1774650639663,-151.789437,0.0002,2]
[418955511,1774650639672,-6000.0,0.0002,5]
[418955512,1774650639681,-151.0,0.0002,2]
[418955513,1774650639690,-151.0,0.0002,2]
[418955514,1774650639699,-151.0,0.0002,2]
[418955515,1774650639708,-151.0,0.0002,2]
[418955516,1774650639718,-151.0,0.0002,2]
[418955517,1774650639727,-151.0,0.0002,2]
[418955518,1774650639736,-151.0,0.0002,2]
[418955519,1774650639745,-1000.0,0.0002,5]
[418955520,1774650639754,-157.594508,0.0002,2]
[418955521,1774650639764,-151.0,0.0002,2]
[418955522,1774650639773,-324.13082,0.0002,2]
[418955523,1774650639782,-324.13082,0.0002,2]
[418955524,1774650639791,-324.13082,0.0002,2]
[418955525,1774650639800,-324.13082,0.0002,2]
[418955526,1774650639809,-196.173667,0.0002,2]
[418955527,1774650639819,-196.173667,0.0002,2]
[418955528,1774650639827,-196.173667,0.0002,2]
[418955529,1774650639837,-196.173667,0.0002,2]
[418955530,1774650639846,-151.55000802,0.0002,2]
[418955531,1774650639855,-151.0,0.0002,2]
[418955532,1774650639863,-168.436727,0.0002,2]
[418955533,1774650639873,-288.643514,0.0002,2]
[418955534,1774650639882,-288.643514,0.0002,2]
[418955535,1774650639891,-288.643514,0.0002,2]
[418955536,1774650639900,-288.643514,0.0002,2]
[418955537,1774650639909,-268.152703,0.0002,2]
[418955538,1774650639918,-268.152703,0.0002,2]
[418955539,1774650639927,-268.152703,0.0002,2]
[418955540,1774650639936,-268.152703,0.0002,2]
[418955541,1774650639945,-151.0,0.0002,2]
[418955542,1774650639955,-432.05,0.0002,2]
[418955543,1774650639964,-151.0,0.0002,2]
[418955544,1774650639973,-432.05,0.0002,2]
[418955545,1774650639983,-151.0,0.0002,2]
[418955546,1774650639992,-432.05,0.0002,2]
[418955547,1774650640003,-432.05,0.0002,2]
[418955548,1774650640012,-380.329895,0.0002,2]
[418955549,1774650640022,-380.329895,0.0002,2]
[418955550,1774650640031,-380.329895,0.0002,2]
[418955551,1774650640041,-380.329895,0.0002,2]
[418955552,1774650640050,-380.329895,0.0002,2]
[418955553,1774650640059,-380.329895,0.0002,2]
[418955554,1774650640068,-380.329895,0.0002,2]
[418955555,1774650640077,-380.329895,0.0002,2]
[418955556,1774650640087,-151.0,0.0002,2]
[418955557,1774650640096,-300.0,0.0002,2]
[418955558,1774650640105,-875.968687,0.0002,2]
[418955559,1774650640115,-875.968687,0.0002,2]
[418955560,1774650640125,-875.968687,0.0002,2]
[418955561,1774650640134,-875.968687,0.0002,2]
[418955562,1774650640143,-875.968687,0.0002,2]
[418955563,1774650640153,-875.968687,0.0002,2]
[418955565,1774650640163,-875.968687,0.0002,2]
[418955566,1774650640172,-875.968687,0.0002,2]
[418955568,1774650640181,-500.0,0.0002,2]
[418955570,1774650640190,-404.7,0.0002,2]
[418955571,1774650640199,-404.7,0.0002,2]
[418955573,1774650640208,-404.7,0.0002,2]
[418955574,1774650640217,-404.7,0.0002,2]
[418955575,1774650640226,-404.7,0.0002,2]
[418955576,1774650640235,-404.7,0.0002,2]
[418955577,1774650640244,-404.7,0.0002,2]
[418955578,1774650640252,-404.7,0.0002,2]
[418955579,1774650640261,-151.0,0.0002,2]
[418955580,1774650640270,-151.0,0.0002,2]
[418955581,1774650640279,-1249.07,0.0002,2]
[418955582,1774650640288,-1578.646489,0.0002,2]
[418955583,1774650640298,-1578.646489,0.0002,2]
[418955584,1774650640308,-1578.646489,0.0002,2]
[418955585,1774650640318,-1578.646489,0.0002,2]
[418955586,1774650640338,-1578.646489,0.0002,2]
[418955587,1774650640347,-1578.646489,0.0002,2]
[418955588,1774650640357,-1578.646489,0.0002,2]
[418955589,1774650640367,-1578.646489,0.0002,2]
[418955590,1774650640377,-334.739872,0.0002,2]
[418955591,1774650640386,-334.739872,0.0002,2]
[418955592,1774650640396,-334.739872,0.0002,2]
[418955593,1774650640405,-334.739872,0.0002,2]
[418955594,1774650640415,-334.739872,0.0002,2]
[418955595,1774650640425,-334.739872,0.0002,2]
[418955596,1774650640435,-334.739872,0.0002,2]
[418955597,1774650640444,-334.739872,0.0002,2]
[418955598,1774650640454,-1543.94,0.0002,2]
[418955599,1774650640464,-1543.94,0.0002,2]
[418955600,1774650640475,-1543.94,0.0002,2]
[418955601,1774650640484,-1543.94,0.0002,2]
[418955602,1774650640494,-798.14956674,0.0002,2]
[418955603,1774650640510,-745.79043326,0.0002,2]
[418955604,1774650640519,-1543.94,0.0002,2]
[418955605,1774650640528,-1543.94,0.0002,2]
[418955606,1774650640538,-463.77980206,0.0002,2]
[418955613,1774650641465,-689.93964682,0.00013159,2]
[418955628,1774650644261,-4310.06035318,0.00013159,2]
[418955629,1774650644270,-1060.0,0.00019999,5]
[418955630,1774650644279,-1236.0,0.00019999,5]
[418955631,1774650644289,-1000.0,0.0002,2]
[418955632,1774650644298,-1080.16019794,0.0002,2]
[418955633,1774650644308,-1543.94,0.0002,2]
[418955634,1774650644319,-1543.94,0.0002,2]
[418955635,1774650644329,-1543.94,0.0002,2]
[418955636,1774650644338,-1543.94,0.0002,2]
[418955637,1774650644348,-1543.94,0.0002,2]
[418955638,1774650644357,-1543.94,0.0002,2]
[418955639,1774650644366,-1543.94,0.0002,2]
[418955640,1774650644375,-1543.94,0.0002,2]
[418955641,1774650644385,-1543.94,0.0002,2]
[418955642,1774650644395,-1543.94,0.0002,2]
[418955643,1774650644404,-1543.94,0.0002,2]
[418955644,1774650644414,-1543.94,0.0002,2]
[418955645,1774650644424,-1543.94,0.0002,2]
[418955646,1774650644435,-1543.94,0.0002,2]
[418955647,1774650644444,-1543.94,0.0002,2]
[418955648,1774650644454,-1543.94,0.0002,2]
[418955649,1774650644463,-1543.94,0.0002,2]
[418955650,1774650644472,-1543.94,0.0002,2]
[418955651,1774650644482,-1543.94,0.0002,2]
[418955652,1774650644491,-1543.94,0.0002,2]
[418955653,1774650644501,-1543.94,0.0002,2]
[418955654,1774650644510,-1543.94,0.0002,2]
[418955655,1774650644520,-1543.94,0.0002,2]
[418955656,1774650644529,-1543.94,0.0002,2]
[418955657,1774650644538,-1543.94,0.0002,2]
[418955658,1774650644547,-1543.94,0.0002,2]
[418955659,1774650644556,-2312.89,0.0002,2]
[418955660,1774650644568,-1008.0,0.0002002,120]
[418955661,1774650644578,-324.13082,0.00020112,2]
[418955662,1774650644587,-324.13082,0.00020112,2]
[418955664,1774650644596,-324.13082,0.00020112,2]
[418955666,1774650644605,-324.13082,0.00020112,2]
[418955667,1774650644616,-196.173667,0.00020112,2]
[418955668,1774650644626,-196.173667,0.00020112,2]
[418955669,1774650644635,-196.173667,0.00020112,2]
[418955670,1774650644645,-196.173667,0.00020112,2]
[418955671,1774650644655,-151.0,0.00020112,2]
[418955672,1774650644664,-11.38801395,0.00020112,2]
[418955673,1774650644675,-277.25550005,0.00020112,2]